Cogmind - Beta 13 @@@ ROGUE MODE // 2024.04.06 @ 15:22:15 Player: lilya Result: Self-destructed Performance ------------- Evolutions (2) 1000 Regions Visited (5) 1000 Robots Destroyed (26) 130 Value Destroyed (831) 831 Prototype IDs (3) 60 Alien Tech Used (0) 0 Bonus (0) 0 TOTAL SCORE: 3021 Bonus ------- None Cogmind --------- Core Integrity 305/550 Matter 300/300 Energy 100/100 System Corruption 0% Temperature Cool (0) Movement Walking (120) Location -8/Storage Parts ------- > --- POWER (1) -------- (None) > --- PROPULSION (3) --- Carbon-fiber Leg Carbon-fiber Leg > --- UTILITY (4) ------ Small Storage Unit ECM Suite > --- WEAPON (3) ------- Katana > --- INVENTORY (8) ---- Light Angular Momentum Engine Aluminum Leg Carbon-fiber Leg Advanced Visual Processing Unit Improved Terrain Scanner Hacking Suite Advanced Beam Cannon High-powered Shotgun Peak State ------------ > --- POWER ------------ Cold Fusion Reactor > --- PROPULSION ------- Carbon-fiber Leg Carbon-fiber Leg Carbon-fiber Leg > --- UTILITY ---------- Small Storage Unit Seismic Detector ECM Suite Drone Bay > --- WEAPON ----------- EM Pulse Cannon Improved Assault Rifle Katana > --- INVENTORY -------- Light Angular Momentum Engine Aluminum Leg Carbon-fiber Leg Advanced Visual Processing Unit Improved Terrain Scanner Hacking Suite Advanced Beam Cannon High-powered Shotgun [Rating: 34] Favorites ----------- Power Ion Engine Engine Ion Engine Reactor Cold Fusion Reactor Propulsion Aluminum Leg Leg Aluminum Leg Utility Small Storage Unit Device Seismic Detector Storage Small Storage Unit Protection Medium Armor Plating Weapon Katana Energy Gun Pulse Rifle Energy Cannon EM Pulse Cannon Ballistic Gun Improved Assault Rifle Launcher Grenade Launcher Slashing Weapon Katana Build | -11 -10 -10 -9 -8 -8 ------- Run | Yrd Mat Min Mat Mat Sto Slots Evolved 4 | . . . 2 2 . Power . | . . . . . . Propulsion 1 | . . . 1 . . Utility 2 | . . . 1 1 . Weapon 1 | . . . . 1 . Parts Attached 47 | 7 3 2 12 16 7 Power 5 | 1 . 1 1 1 1 Engine 4 | 1 . 1 1 1 . Core . | . . . . . . Reactor 1 | . . . . . 1 Propulsion 12 | 2 . . 2 4 4 Treads . | . . . . . . Leg 12 | 2 . . 2 4 4 Wheel . | . . . . . . Hover . | . . . . . . Flight . | . . . . . . Utility 10 | 2 . . 4 3 1 Device 6 | 1 . . 4 . 1 Storage 3 | 1 . . . 2 . Processor . | . . . . . . Hackware . | . . . . . . Protection 1 | . . . . 1 . Artifact . | . . . . . . Weapon 20 | 2 3 1 5 8 1 Energy Gun 6 | . 2 . 2 2 . Energy Cannon 5 | . . . 2 3 . Ballistic Gun 7 | 2 1 . 1 2 1 Ballistic Cannon . | . . . . . . Launcher 1 | . . 1 . . . Special Weapon . | . . . . . . Impact Weapon . | . . . . . . Slashing Weapon 1 | . . . . 1 . Piercing Weapon . | . . . . . . Special Melee Weapon . | . . . . . . Unidentified Prototypes 3 | . . . 1 1 1 Parts Lost 11 | . . 2 1 . 8 Power 2 | . . 1 . . 1 Propulsion 1 | . . . . . 1 Utility 3 | . . . . . 3 Weapon 5 | . . 1 1 . 3 Highest Loss Streak 3 | . . 1 1 . 3 To Critical Strikes . | . . . . . . Average Slot Usage (%) 97 | . 100 97 97 100 95 Engine 7 | . 14 13 11 9 . Reactor 3 | . . . . . 8 Leg 28 | . 28 28 31 27 26 Device 19 | . 14 14 22 18 21 Storage 10 | . 14 14 11 9 9 Protection 2 | . . . . 9 2 Energy Gun 4 | . 11 4 3 6 2 Energy Cannon 7 | . . . 10 10 8 Ballistic Gun 7 | . 16 14 7 1 6 Slashing Weapon 4 | . . . . 8 9 Naked Turns . | . . . . . . Heaviest Build 38 | 12 12 13 20 33 38 Greatest Support 45 | 20 20 20 33 41 45 Greatest Overweight (x) . | . . . . . . Average Overweight (x) . | . . . . . . Largest Inventory Capacity 15 | 8 8 8 8 15 8 Average Capacity 7 | 7 8 8 8 8 8 Most Carried 9 | 8 8 8 8 9 8 Average Carried 7 | 5 7 7 7 7 7 Final Capacity 8 | 8 8 8 8 8 8 Final Carried 8 | 8 8 7 8 8 8 Class Distribution -------------------- 65% | Mutant 34% | Scavenger-Mutant Dominant Class ---------------- Mutant | -10/Materials Mutant | -10/Mines Scavenger-Mutant | -9/Materials Scavenger-Mutant | -8/Materials Mutant | -8/Storage Resources | -11 -10 -10 -9 -8 -8 ----------- Run | Yrd Mat Min Mat Mat Sto Matter Collected 694 | 241 45 39 140 176 53 Remotely 10 | . . . 10 . . Salvage Created 1034 | 16 45 . 236 344 393 Parts 52 | 4 5 . 17 15 11 Haulers Intercepted . | . . . . . . Recyclers Shooed 2 | . 1 . . 1 . Parts Field Recycled . | . . . . . . Retrieved Matter . | . . . . . . Parts Self-Destructed . | . . . . . . Prevented . | . . . . . . Kills | -11 -10 -10 -9 -8 -8 ------- Run | Yrd Mat Min Mat Mat Sto Combat Hostiles Destroyed 19 | . 3 . 5 4 7 Melee 1 | . . . . 1 . Guns 4 | . 3 . . . 1 Cannons 11 | . . . 5 3 3 AOE 1 | . . . . . 1 Classes Destroyed 8 | 1 1 . 3 3 . Tunneler 2 | 1 . . 1 . . Recycler 1 | . . . . 1 . Operator 2 | . . . . 2 . Watcher 2 | . . . 1 . 1 Swarmer 3 | . 3 . . . . Grunt 14 | . . . 4 3 7 Duelist 1 | . . . 1 . . Hunter 1 | . . . . 1 . Best Kill Streak 3 | 1 3 . 1 3 3 Combat Bots Only 3 | . 3 . 1 2 3 Max Kills in Single Turn 1 | 1 1 . 1 1 1 Gunslinging . | . . . . . . Exploded 1 | . . . . . 1 Melee 1 | . . . . 1 . Uniques/NPCs Destroyed . | . . . . . . Combat | -11 -10 -10 -9 -8 -8 -------- Run | Yrd Mat Min Mat Mat Sto Hostile Shots Fired 241 | . 15 3 19 42 162 Missed 94 | . 5 1 4 14 70 Damage Taken 2286 | . 97 234 181 405 1369 Core 387 | . 30 60 52 57 188 Absorbed by Shields . | . . . . . . Core Remaining (%) 83 | 100 . 64 87 . . Volleys Fired 86 | 3 3 . 24 26 30 Largest 3 | 2 2 . 2 3 2 Hottest 173 | 40 60 . 133 173 126 Shots Fired 113 | 6 6 . 37 31 33 Gun 37 | 6 6 . 13 9 3 Cannon 76 | . . . 24 22 30 Launcher . | . . . . . . Special . | . . . . . . Kinetic 24 | 6 3 . 9 4 2 Thermal 38 | . 3 . 27 7 1 Explosive . | . . . . . . Electromagnetic 51 | . . . 1 20 30 Robot Hit Streak 17 | 5 2 . 3 7 17 Robot Miss Streak 3 | . 1 . 3 3 1 Penetration Max . | . . . . . . Secondary Targets . | . . . . . . Shots Hit Robots 82 | 5 3 . 24 20 30 Core Hits 41 | 1 4 . 10 13 13 Critical Kills . | . . . . . . Critical Parts Destroyed . | . . . . . . Critical Strikes 3 | . . . . 1 2 Corrupt 2 | . . . . . 2 Sever 1 | . . . . 1 . Melee Attacks 10 | . . . . 7 3 Impact . | . . . . . . Slashing 10 | . . . . 7 3 Piercing . | . . . . . . Sneak Attacks 1 | . . . . 1 . Combat Hostiles . | . . . . . . Follow-up Attacks . | . . . . . . Damage Inflicted 2279 | 60 37 . 394 589 1199 Guns 270 | 60 37 . 115 12 46 Cannons 1330 | . . . 254 354 722 Explosions 411 | . . . 25 . 386 Melee 256 | . . . . 223 33 Ramming 12 | . . . . . 12 Kinetic 172 | 60 17 . 65 . 30 Thermal 781 | . 20 . 307 52 402 Explosive . | . . . . . . Electromagnetic 1058 | . . . 22 314 722 Impact . | . . . . . . Slashing 256 | . . . . 223 33 Piercing . | . . . . . . Highest Corruption . | . . . . . . Average Corruption . | . . . . . . Corruption Purged . | . . . . . . Corruption Blocked . | . . . . . . Overload Shots . | . . . . . . Overflow Damage 39 | . . . 5 9 25 Projectiles 14 | . . . 5 9 . Explosions 16 | . . . . . 16 Melee 9 | . . . . . 9 Knockbacks 1 | . . . . . 1 Impact 1 | . . . . . 1 Kinetic . | . . . . . . Secondary . | . . . . . . Self-Inflicted Damage 79 | . . . . . 79 Shots 2 | . . . . . 2 Rammed . | . . . . . . Targets Rammed 3 | . . . . . 3 Kicked 3 | . . . . . 3 Crushed . | . . . . . . Highest Temperature 136 | . 40 . 136 93 135 Average Temperature 37 | . 19 . 47 27 41 Received Heat Transfer 867 | . 6 . 78 153 630 Siege Activations . | . . . . . . Robots Corrupted 2 | . . . . . 2 Combat Hostiles 2 | . . . . . 2 Parts Fried 9 | . . . . 2 7 Impact Corruptions . | . . . . . . Robots Melted . | . . . . . . Combat Hostiles . | . . . . . . Parts Melted 1 | . . . 1 . . Heat Transferred 1179 | . 50 . 553 89 487 Parts Sabotaged . | . . . . . . Parts Stolen . | . . . . . . Parts Stripped . | . . . . . . Power Chain Reactions 5 | . . . 1 . 4 Alert | -11 -10 -10 -9 -8 -8 ------- Run | Yrd Mat Min Mat Mat Sto Peak Influence 200 | 5 73 28 112 200 174 Initial 28 | . 3 28 2 20 . Average 45 | . 15 26 29 97 53 Maximum Alert Level 1 | . . . . 1 . Low Security (%) 99 | 100 100 100 100 99 100 Level 1 . | . . . . . . Level 2 . | . . . . . . Level 3 . | . . . . . . Level 4 . | . . . . . . Level 5 . | . . . . . . High Security . | . . . . . . Max Security . | . . . . . . Squads Dispatched 4 | . . . 1 . 3 Investigation . | . . . . . . Extermination . | . . . . . . Reinforcement 4 | . . . 1 . 3 Assault . | . . . . . . Garrison . | . . . . . . Intercept . | . . . . . . Searches Triggered . | . . . . . . Construction Impeded . | . . . . . . Haulers Reinforced . | . . . . . . Active Scanning Responses . | . . . . . . Cargo Convoy Interrupts . | . . . . . . Stealth | -11 -10 -10 -9 -8 -8 --------- Run | Yrd Mat Min Mat Mat Sto Distress Signals 4 | . . . . 2 2 Communications Jammed . | . . . . . . Distress Signals . | . . . . . . Times Spotted 82 | . 5 4 11 10 52 Peak Tracking Total 11 | . 3 9 2 2 11 Tactical Retreats 19 | . . . 3 1 15 Traps | -11 -10 -10 -9 -8 -8 ------- Run | Yrd Mat Min Mat Mat Sto Traps Triggered . | . . . . . . Indirectly . | . . . . . . Trap Hack Attempts . | . . . . . . Triggered . | . . . . . . Disarmed . | . . . . . . Reprogrammed . | . . . . . . Reused . | . . . . . . Traps Extracted . | . . . . . . Installed . | . . . . . . Triggered . | . . . . . . Machines | -11 -10 -10 -9 -8 -8 ---------- Run | Yrd Mat Min Mat Mat Sto Machines Disabled . | . . . . . . Max in Single Turn . | . . . . . . Machines Repaired . | . . . . . . Machines Dismantled . | . . . . . . Machines Sabotaged . | . . . . . . Overloaded Fab Kills . | . . . . . . Hacking | -11 -10 -10 -9 -8 -8 --------- Run | Yrd Mat Min Mat Mat Sto Machines Accessed 6 | . 2 . . 1 3 Terminals 6 | . 2 . . 1 3 Fabricators . | . . . . . . Repair Stations . | . . . . . . Recycling Units . | . . . . . . Scanalyzers . | . . . . . . Garrison Access . | . . . . . . Total Hacks 7 | . 2 . . 1 4 Successful 5 | . 2 . . 1 2 Failed 2 | . . . . . 2 Catastrophic . | . . . . . . Database Lockouts . | . . . . . . Manual . | . . . . . . Terminals 7 | . 2 . . 1 4 Fabricators . | . . . . . . Repair Stations . | . . . . . . Recycling Units . | . . . . . . Scanalyzers . | . . . . . . Garrison Access . | . . . . . . Terminal Hacks 5 | . 2 . . 1 2 Robot Analysis 1 | . 1 . . . . Open Door 2 | . . . . . 2 Alert Level 2 | . 1 . . 1 . Fabricator Hacks . | . . . . . . Repair Station Hacks . | . . . . . . Recycling Unit Hacks . | . . . . . . Scanalyzer . | . . . . . . Garrison Access Hacks . | . . . . . . Unauthorized Hacks . | . . . . . . Terminals . | . . . . . . Fabricators . | . . . . . . Repair Stations . | . . . . . . Recycling Units . | . . . . . . Scanalyzers . | . . . . . . Garrison Access . | . . . . . . Data Cores Recovered 2 | . . . . 2 . Used . | . . . . . . Hacking Detections 3 | . . . . 1 2 Full Trace Events . | . . . . . . Feedback Events . | . . . . . . Feedback Blocked . | . . . . . . Robot Schematics Acquired . | . . . . . . Robots Built . | . . . . . . Authchips . | . . . . . . Time . | . . . . . . Total Robot Build Rating . | . . . . . . Part Schematics Acquired . | . . . . . . Parts Built . | . . . . . . Authchips . | . . . . . . Time . | . . . . . . Total Part Build Rating . | . . . . . . Parts Repaired . | . . . . . . Time . | . . . . . . Parts Recycled . | . . . . . . Recycled Matter . | . . . . . . Retrieved Matter . | . . . . . . Retrieved Components . | . . . . . . Parts Scanalyzed . | . . . . . . Part Schematics Acquired . | . . . . . . Parts Damaged . | . . . . . . Bothacking | -11 -10 -10 -9 -8 -8 ------------ Run | Yrd Mat Min Mat Mat Sto Used RIF Installer . | . . . . . . Robots Hacked . | . . . . . . Non-combat . | . . . . . . Combat . | . . . . . . Robot Hacks Applied . | . . . . . . Relay Couplers Released . | . . . . . . Fabnet Peak Effective % . | . . . . . . Robots Rewired . | . . . . . . Allies Hacked . | . . . . . . Hacks Repelled . | . . . . . . Allies | -11 -10 -10 -9 -8 -8 -------- Run | Yrd Mat Min Mat Mat Sto Total Allies . | . . . . . . Largest Group . | . . . . . . Highest-Rated Group . | . . . . . . Highest-Rated Ally . | . . . . . . Total Orders . | . . . . . . Ally Attacks . | . . . . . . Total Damage . | . . . . . . Kills . | . . . . . . Allies Corrupted . | . . . . . . Allies Melted . | . . . . . . Intel | -11 -10 -10 -9 -8 -8 ------- Run | Yrd Mat Min Mat Mat Sto Robot Analysis Total 1 | . 1 . . . . Derelict Logs Recovered . | . . . . . . Drone Launches 2 | . . . . . 2 Drone Recoveries 2 | . . . . . 2 Exploration | -11 -10 -10 -9 -8 -8 ------------- Run | Yrd Mat Min Mat Mat Sto Turns Passed 2811 | 90 183 311 877 417 933 Spaces Moved 1672 | 58 132 250 505 217 510 Core 11 | 11 . . . . . Treads . | . . . . . . Legs 1661 | 47 132 250 505 217 510 Wheels . | . . . . . . Hover . | . . . . . . Flight . | . . . . . . Fastest Speed 50 | 50 120 120 120 120 120 Average Speed 119 | 106 120 120 120 120 120 Slowest Speed 120 | 120 120 120 120 120 120 Overloaded Moves . | . . . . . . Propulsion Burnouts . | . . . . . . Robots Hopped . | . . . . . . Cave-ins Triggered . | . . . . . . Exploration Rate (%) 31 | 3 28 53 24 17 62 Regions Visited 5 Branch Regions 2 Pre-discovered Areas . | . . . . . . Known Exits Taken . | . . . . . . Unknown Exits Taken 5 | 1 1 1 1 1 . Scrap Searched 2 | . . 2 . . . Spaces Dug . | . . . . . . Terrain Destroyed 23 | . . . 5 . 18 Melee . | . . . . . . Projectile . | . . . . . . AOE 23 | . . . 5 . 18 Terrain Rammed . | . . . . . . Walls Destroyed . | . . . . . . Machines Disabled . | . . . . . . Actions | -11 -10 -10 -9 -8 -8 --------- Run | Yrd Mat Min Mat Mat Sto Total 2367 | 78 151 262 742 338 796 Wait 462 | . 7 6 181 40 228 Move 1667 | 57 131 249 504 216 510 Hop . | . . . . . . Pick Up 50 | 11 3 2 11 16 7 Fast Attach 9 | 4 1 1 1 2 . Attach 12 | 3 . 1 3 3 2 Detach . | . . . . . . Swap 26 | . 2 . 8 11 5 Drop 42 | . 4 3 10 17 8 Fire 86 | 3 3 . 24 26 30 Melee 10 | . . . . 7 3 Ram . | . . . . . . Kick 3 | . . . . . 3 Crush . | . . . . . . Escape Stasis . | . . . . . . Rewire . | . . . . . . Trap . | . . . . . . Miscellaneous . | . . . . . . Route ------- -11/Scrapyard -10/Materials -10/Mines (discovered 2 exits: *Mat x2) -9/Materials -8/Materials -8/Storage History --------- Turn | Location | Event 8 | -11/Scrapyard | Discovered new exit (range 16) 91 | -11/Scrapyard | Entered Materials 190 | -10/Materials | Discovered new exit (range 16) 274 | -10/Materials | Entered Mines 313 | -10/Mines | Build established: Mutant 346 | -10/Mines | Discovered new exit (range 10) 464 | -10/Mines | Discovered new exit (range 5) 528 | -10/Mines | Assembled infested the area 533 | -10/Mines | Assisted by a Guerilla fighting off Assembled 585 | -10/Mines | Entered Materials 585 | -9/Materials | Evolved 2 slots: Propulsion x1, Utility x1 1271 | -9/Materials | Build established: Scavenger-Mutant 1323 | -9/Materials | Discovered new exit (range 4) 1462 | -9/Materials | Entered another Materials area 1462 | -8/Materials | Evolved 2 slots: Utility x1, Weapon x1 1526 | -8/Materials | Discovered new exit (range 6) 1879 | -8/Materials | Entered Storage 2214 | -8/Storage | Build established: Mutant 2812 | -8/Storage | Self-destructed Last Messages --------------- Chain reaction triggered in Lgt. Nuclear Core. Seismic Detector destroyed. Destroyed Seismic Detector. G-47 Trooper destroyed. K-01 Serf collects debris. Acquired 23 matter. K-01 Serf collects debris. Critical hit (Burn: +37). Aluminum Leg fried. G-47 Trooper destroyed. Kicked O-16 Technician. EM Pulse Cannon destroyed. Kicked K-01 Serf out of the way. Drone Bay destroyed. Carbon-fiber Leg destroyed. Imp. Assault Rifle destroyed. S-10 Pest suffers critical hit (Destroy). S-10 Pest destroyed. Critical hit (Burn: +37). Cold Fusion Reactor destroyed. Map ----- +----------------------------------------------------+ | #######?????????????# #"[" #???????# #?? | | # #?????????????#! |! #=%"##???##### #?? | | #?????????????# # ###### # #?? | | ??????????????# + % T + #?? | | ??????????????# ! # ###### # #?? | | ? ??????????#############+#####?## ## #?? | | ?# #####?###### !! # ! #??# #####+###?? | | ?# # ??? # !! #? #??# #???# #???? | | ?# # ????" ## !! #??? #??# #???# #???? | | ?# # "????" #?? ??????? % #??# #???# #???? | | ?# # "????" #####"###########+##### #???# #???? | | ?# / "????" / % #???# #???? | | # # "?"""" ############## #???# #???? | | # # """ #????????????# ##### #???? | | / # #????????????# #???? | | # ###########????????????#### ######## #???? | | # #?????????????????????????# #??????# ^ #???? | | ?# #?????????????????????????# #??????# ^ #???? | | ?# #?????????????????????????# #??????# #???? | | ?# #?????????????????????????# #?######/##+#???? | | ?# #???????????#"""#?????????# #?# #???? | | ?# #???????????? #?????????# #?# ]]= #???? | | ?# ###############+########### ### ] = ###?? | | ?# s%* gg # ] ""#?? | | ?# s g r/ T"#?? | | ?# a s @ k # ""#?? | | ?## ###### #################+###+# ###?? | | ??#+###### #????????????# # #???? | | ??? # #????????????# """" ###" "#####???? | | ? """"" # #????????????#????" #?#"R"#???????? | | # """"" # #?????????????????" #?#"""#???????? | | # """"" # #?????????????????" #?#####???????? | | " #? ???????????????" #?????????????? | | # """"" # # ???????????????" #?????????????? | | ?? """"" # # ???????????????? #?????????????? | | ?? """"" / /????????????????? #?????????????? | | # # #?????????????????#####?????????????? | | ########## #???????????????????????????????????? | | ??????? # #???????????????????????????????????? | | ???????" # #???????????????????????????????????? | | ???????" # #???????????????????????????????????? | | ??????"" " #???????????????????????????????????? | | ??????" # #???????????????????????????????????? | | ??????" # #???????????????????????????????????? | | """"" " #???????????????????????????????????? | | + +???????????????????????????????????? | | ###+###### #???????????????????????????????????? | | ? ?????# #???????????????????????????????????? | | ## ?##### #???????????????????????????????????? | | ?# ?#"""#% #???????????????????????????????????? | +----------------------------------------------------+ Best States ------------- Heat Dissipation 31 Energy Generation 17 Energy Capacity 250 Matter Stores 300 Matter Capacity 300 Sight Range 16 Terrain Scan Density 10 ECM Strength 1 Armor Coverage 225 Evasion (%) 55 Item Schematics ----------------- None Robot Schematics ------------------ None Fabricated ------------ Nothing Alien Tech Used ----------------- None Achievements -------------- I Survived The Infestation Power Corrupts Challenges ------------ None Game ------ Seed PointyTransmissionBlade Manual? 0 Play Time 01:39:40 Cumulative 9.9 hours Start 2024.04.05 @ 19:23:56 End 2024.04.06 @ 15:22:15 Sessions 3 Manual Loads 0 Difficulty Rogue Special Mode None Game No. 12 Rogue 11 Adventurer 1 Explorer 0 Win Type - Total 0 Types 0/0/0/0/0/0/0/0/0 Lore% 15 Gallery% 9 Achievement% 8 Wizard Run 0 Options --------- Layout 1 ASCII 0 Keyboard 0 Movement Numpad Keybinds 0 Fullscreen 2 Font 24/Smallcaps Map View 50x35 Zoom Use 0% Tactical HUD 0 Map Filters NONE Filters NONE Steam 1 RUN: 2c2423c6-9f7e-40d1-bf03-cdb89a797ba2